bitfinex-derivatives/quotes_BTCF0:USTF0_20241226
["timestamp","ask_amount","ask_price","bid_price","bid_amount"]
[1735191220143,0.403542,98263.0,98262.0,0.01030584]
[1735191220632,0.402542,98263.0,98262.0,0.01030584]
[1735191221433,0.401542,98263.0,98262.0,0.01030584]
[1735191223731,0.401542,98263.0,98262.0,0.01030538]
[1735191226732,0.401542,98263.0,98262.0,0.01030925]
[1735191229038,0.040742,98263.0,98262.0,0.01030925]
[1735191229939,0.040742,98263.0,98262.0,0.01031188]
[1735191229940,0.09025832,98263.0,98262.0,0.01031188]
[1735191232836,0.09025832,98263.0,98262.0,0.01031341]
[1735191235838,0.04951632,98263.0,98262.0,0.01031341]
[1735191236054,0.24261395,98280.0,98269.0,0.040738]
[1735191236233,0.24261395,98280.0,98270.0,0.492]
[1735191236447,0.040735,98279.0,98273.0,8e-05]
[1735191236843,0.040735,98279.0,98273.0,0.01030073]
[1735191237350,0.2162872,98274.0,98273.0,0.01030073]
[1735191237647,0.004,98274.0,98273.0,0.01030073]
[1735191237846,0.006,98274.0,98273.0,0.01030073]
[1735191238543,0.046737,98274.0,98273.0,0.01030073]
[1735191238748,0.042737,98274.0,98273.0,0.01030073]
[1735191239053,0.046737,98274.0,98273.0,8e-05]
[1735191239342,0.042737,98274.0,98273.0,8e-05]
[1735191239544,0.044737,98274.0,98273.0,8e-05]
[1735191239843,0.042737,98274.0,98273.0,8e-05]
[1735191240044,0.044737,98274.0,98273.0,0.01030144]
[1735191240643,0.042737,98274.0,98273.0,0.01030144]
[1735191240944,0.043737,98274.0,98273.0,0.01030144]
[1735191241147,0.043737,98274.0,98273.0,0.01030154]
[1735191242353,0.19570177,98274.0,98273.0,0.01030154]
[1735191245259,0.20585354,98274.0,98273.0,0.01030154]
[1735191247157,0.20585354,98274.0,98273.0,0.01030398]
[1735191247859,0.05388877,98274.0,98273.0,0.01030398]
[1735191249950,0.05388877,98274.0,98273.0,8e-05]
[1735191250156,0.05388877,98274.0,98273.0,0.01030383]
[1735191250353,0.20579727,98274.0,98273.0,0.01030383]
[1735191251859,0.05388877,98274.0,98273.0,0.01030383]
[1735191252853,0.05388877,98274.0,98273.0,0.01030336]
[1735191253148,0.05388877,98274.0,98273.0,8e-05]
[1735191253352,0.05388877,98274.0,98273.0,0.01030304]
[1735191253562,0.043737,98274.0,98273.0,0.01030304]
[1735191254249,0.003,98274.0,98273.0,0.01030304]
[1735191255561,0.003,98274.0,98273.0,0.0102993]
[1735191257553,0.040737,98273.0,98253.0,0.1259]
[1735191257753,0.401541,98264.0,98253.0,0.1259]
[1735191258062,0.401581,98264.0,98253.0,0.1259]
[1735191258575,0.59281629,98264.0,98253.0,0.1259]
[1735191258761,0.401545,98254.0,98250.0,9.901e-05]
[1735191258958,0.401585,98254.0,98250.0,9.901e-05]
[1735191259154,4e-05,98253.0,98250.0,9.901e-05]
[1735191259954,0.15192473,98253.0,98250.0,9.901e-05]
[1735191260464,0.16197318,98253.0,98252.0,0.00208]
[1735191261063,0.16197318,98253.0,98252.0,0.00408]
[1735191261267,0.16297318,98253.0,98252.0,0.00408]
[1735191262768,0.01108845,98253.0,98252.0,0.00408]
[1735191263668,0.00104,98253.0,98252.0,0.00408]
[1735191264461,0.05056357,98253.0,98252.0,0.00408]
[1735191265657,0.00104,98253.0,98252.0,0.00408]
[1735191268670,0.15182908,98257.0,98253.0,0.040745]
[1735191269174,0.15182908,98257.0,98256.0,8e-05]
[1735191269877,0.09107529,98259.0,98256.0,8e-05]
[1735191270168,0.09107529,98259.0,98258.0,0.3608]
[1735191270865,0.09107529,98262.0,98258.0,0.36088]
[1735191271069,0.09107529,98262.0,98259.0,0.0644]
[1735191271267,0.09107529,98262.0,98261.0,8e-05]
[1735191272564,0.46082201,98270.0,98261.0,8e-05]
[1735191272565,0.040742,98263.0,98261.0,8e-05]
[1735191272872,0.040742,98263.0,98262.0,8e-05]
[1735191282778,0.05095193,98263.0,98262.0,8e-05]
[1735191284175,0.20278101,98263.0,98262.0,8e-05]
[1735191285583,0.05095193,98263.0,98262.0,8e-05]
[1735191288887,0.41175193,98263.0,98262.0,8e-05]
[1735191289183,0.46126943,98263.0,98262.0,8e-05]
[1735191298403,0.46126943,98263.0,98262.0,0.01050864]
[1735191298702,0.46126943,98263.0,98262.0,0.01050891]
[1735191299084,0.64372831,98263.0,98262.0,0.01050898]
[1735191300786,0.46126943,98263.0,98262.0,0.01050898]
[1735191303701,0.46126943,98263.0,98262.0,0.01050946]
[1735191306786,0.46126943,98263.0,98262.0,0.01050974]
[1735191309801,0.46126943,98263.0,98262.0,0.01051075]
[1735191312903,0.46126943,98263.0,98262.0,0.01041245]
[1735191315302,0.040742,98262.0,98253.0,0.062]
[1735191315508,0.040744,98256.0,98253.0,0.062]
[1735191315709,4e-05,98254.0,98253.0,0.062]
[1735191317206,4e-05,98254.0,98253.0,0.066]
[1735191317413,0.23240992,98254.0,98253.0,0.066]
[1735191317603,0.23240992,98254.0,98253.0,0.001]
[1735191317799,0.23240992,98254.0,98253.0,0.004]
[1735191319712,0.0495575,98254.0,98253.0,0.004]
[1735191321507,4e-05,98254.0,98253.0,0.004]
[1735191322414,0.0495575,98254.0,98253.0,0.004]
[1735191335316,0.4103575,98254.0,98253.0,0.004]
[1735191337024,0.0495575,98254.0,98253.0,0.004]
[1735191338524,0.4103575,98254.0,98253.0,0.004]
[1735191346134,0.0495575,98254.0,98253.0,0.004]
[1735191347625,4e-05,98254.0,98253.0,0.18696484]
[1735191349328,4e-05,98254.0,98253.0,0.004]
[1735191349530,0.15237943,98254.0,98253.0,0.004]
[1735191350432,0.04587943,98254.0,98253.0,0.004]
[1735191350631,0.04587943,98258.0,98253.0,0.004]
[1735191350930,0.04587943,98258.0,98257.0,8e-05]
[1735191351136,0.04587943,98258.0,98257.0,0.06938]
[1735191352236,0.040743,98259.0,98257.0,0.06938]
[1735191352237,0.16255702,98259.0,98257.0,0.06938]
[1735191352536,0.16255702,98259.0,98258.0,8e-05]
[1735191353532,0.040743,98259.0,98258.0,8e-05]
[1735191355137,0.040743,98259.0,98258.0,0.00208]
[1735191361744,0.040743,98259.0,98258.0,0.00108]
[1735191362447,0.040743,98259.0,98258.0,8e-05]
[1735191363149,0.041743,98259.0,98258.0,8e-05]
[1735191364245,0.042743,98259.0,98258.0,8e-05]
[1735191364936,0.041743,98259.0,98258.0,8e-05]
[1735191365140,0.042743,98259.0,98258.0,8e-05]
[1735191368645,0.041743,98259.0,98258.0,8e-05]
[1735191368845,0.042743,98259.0,98258.0,8e-05]
[1735191370348,0.041743,98259.0,98258.0,8e-05]
[1735191370536,0.042743,98259.0,98258.0,8e-05]
[1735191373244,0.002,98259.0,98258.0,8e-05]
[1735191378049,0.05151421,98259.0,98258.0,8e-05]
[1735191383253,0.05151421,98259.0,98258.0,0.18318013]
[1735191385351,0.05051421,98259.0,98258.0,0.18318013]
[1735191385952,0.04951421,98259.0,98258.0,0.18318013]
[1735191386851,0.04951421,98260.0,98258.0,0.18318013]
[1735191387157,0.04951421,98260.0,98259.0,8e-05]
[1735191387348,0.18284872,98263.0,98259.0,8e-05]
[1735191387548,0.2122872,98275.0,98263.0,0.040741]
[1735191387744,0.2122872,98275.0,98272.0,0.3608]
[1735191387953,0.040737,98274.0,98272.0,0.3608]
[1735191388161,0.2122872,98275.0,98272.0,0.3608]
[1735191388359,0.040736,98277.0,98273.0,0.061]
[1735191388554,0.040736,98277.0,98274.0,8e-05]
[1735191388864,0.040736,98277.0,98275.0,0.01050467]
[1735191389051,0.040736,98277.0,98276.0,0.01050467]
[1735191389756,0.043736,98277.0,98276.0,0.01050467]
[1735191389958,0.003,98277.0,98276.0,0.01050467]
[1735191390461,0.003,98277.0,98276.0,0.05124067]
[1735191390758,0.040728,98295.0,98276.0,0.05124067]
[1735191390759,0.01024851,98295.0,98278.0,0.040735]
[1735191390958,0.040732,98286.0,98280.0,0.0653316]
[1735191391156,0.040732,98286.0,98281.0,0.010504]
[1735191391364,0.040732,98286.0,98282.0,0.010504]
[1735191391659,0.040732,98286.0,98283.0,0.010504]
[1735191391859,0.040732,98286.0,98280.0,0.0653316]
[1735191391860,0.040732,98286.0,98284.0,0.010504]
[1735191392062,0.040729,98293.0,98285.0,0.010504]
[1735191392254,0.040729,98293.0,98286.0,0.010504]
[1735191392564,0.040729,98293.0,98287.0,0.010504]
[1735191392751,0.1520907,98289.0,98288.0,0.071304]
[1735191394163,0.040731,98289.0,98288.0,0.071304]
[1735191394357,0.048731,98289.0,98288.0,0.072304]
[1735191395353,0.048731,98289.0,98288.0,0.011504]
[1735191395962,0.053731,98289.0,98288.0,0.011504]
[1735191396463,0.053731,98289.0,98288.0,0.001]
[1735191396662,0.053731,98289.0,98288.0,0.01148169]
[1735191400063,0.053731,98289.0,98288.0,0.01148147]
[1735191400667,0.013,98289.0,98273.0,0.54396987]
[1735191400864,0.040736,98275.0,98273.0,0.36172]
[1735191401179,0.040776,98275.0,98273.0,0.3608]
[1735191402059,0.040776,98275.0,98272.0,0.18316987]
[1735191402263,0.040776,98275.0,98272.0,0.3608]
[1735191403064,0.042776,98275.0,98272.0,0.3608]
[1735191403465,0.045776,98275.0,98272.0,0.3608]
[1735191404567,0.045776,98275.0,98269.0,0.0618]
[1735191404773,0.045776,98275.0,98263.0,0.54396987]
[1735191405073,0.045776,98275.0,98263.0,0.3608]
[1735191405275,0.045776,98275.0,98263.0,0.37076426]
[1735191406769,0.05589985,98275.0,98263.0,0.37076426]
[1735191407765,0.05589985,98275.0,98263.0,0.3608]
[1735191410063,0.17746027,98275.0,98263.0,0.3608]
[1735191412779,0.05589985,98275.0,98274.0,0.01046152]
[1735191414680,0.05589985,98275.0,98274.0,0.01046477]
[1735191415077,0.045776,98275.0,98274.0,0.01046477]
[1735191417679,0.05582575,98275.0,98274.0,0.01046789]
[1735191418072,0.05582575,98275.0,98274.0,8e-05]
[1735191418377,0.05582575,98275.0,98274.0,0.01046824]
[1735191419975,0.05582575,98275.0,98274.0,0.01046398]
[1735191421376,0.040741,98264.0,98263.0,0.3608]
[1735191421575,0.040741,98264.0,98263.0,0.01038351]
[1735191421885,0.040781,98264.0,98263.0,0.01038351]
[1735191422878,0.040743,98259.0,98258.0,0.18316987]
[1735191423190,0.040783,98259.0,98258.0,0.18316987]
[1735191423785,0.040783,98259.0,98254.0,0.54396987]
[1735191423985,0.040783,98259.0,98254.0,0.54488987]
[1735191424288,4e-05,98258.0,98254.0,0.54488987]
[1735191424683,0.06604,98258.0,98254.0,0.54488987]
[1735191425387,0.18755237,98258.0,98254.0,0.36172]
[1735191425689,0.18755237,98258.0,98254.0,0.3608]
[1735191426688,0.06604,98258.0,98254.0,0.3608]
[1735191429687,0.06604,98258.0,98252.0,8e-05]
[1735191430695,0.18755237,98258.0,98252.0,8e-05]
[1735191431692,0.06604,98258.0,98252.0,8e-05]
[1735191433586,0.06604,98258.0,98257.0,0.01180518]
[1735191435080,0.06604,98258.0,98257.0,0.0118029]
[1735191435495,0.06604,98258.0,98257.0,0.01180283]
[1735191438092,0.06604,98258.0,98257.0,0.01180151]
[1735191441399,4e-05,98258.0,98257.0,0.01180151]
[1735191443594,4e-05,98258.0,98257.0,0.01280151]
[1735191444190,4e-05,98258.0,98257.0,0.0231291]
[1735191444497,4e-05,98258.0,98257.0,0.02312393]
[1735191446211,0.12157422,98263.0,98257.0,0.02312393]
[1735191446396,0.12157422,98263.0,98258.0,0.05101266]
[1735191446694,0.12157422,98263.0,98262.0,8e-05]
[1735191447003,0.12157422,98263.0,98262.0,0.01034927]
[1735191447706,0.040741,98264.0,98262.0,0.01034927]
[1735191447902,0.040741,98264.0,98263.0,0.01026927]
[1735191448202,0.040741,98264.0,98263.0,0.01034927]
[1735191449894,0.09119391,98265.0,98263.0,0.37114927]
[1735191450098,0.09119391,98265.0,98264.0,0.01027322]
[1735191450403,0.09119391,98265.0,98264.0,0.01035322]
[1735191451396,0.09219391,98265.0,98264.0,0.01135322]
[1735191452202,0.13193391,98265.0,98264.0,0.01135322]
[1735191452403,0.04074,98265.0,98264.0,0.01135322]
[1735191453005,0.04074,98265.0,98264.0,0.00108]
[1735191453305,0.04074,98265.0,98264.0,0.01135151]
[1735191453601,0.04074,98265.0,98264.0,0.19434731]
[1735191457190,0.04074,98265.0,98264.0,0.55514731]
[1735191457605,1e-08,98265.0,98264.0,0.55514731]
[1735191457804,1e-08,98265.0,98264.0,0.37215151]
[1735191458007,0.04074001,98265.0,98264.0,0.37215151]
[1735191460108,1e-08,98265.0,98264.0,0.37215151]
[1735191460608,0.12157422,98274.0,98266.0,0.04074]
[1735191460806,0.12157422,98274.0,98267.0,0.01027151]
[1735191461110,0.12157422,98274.0,98273.0,8e-05]
[1735191461406,0.12157422,98274.0,98273.0,0.01035151]
[1735191461603,0.12357422,98274.0,98273.0,0.05108851]
[1735191461810,0.12157422,98279.0,98273.0,0.01035151]
[1735191462112,0.12157422,98279.0,98278.0,0.040815]
[1735191462314,0.12157422,98279.0,98278.0,0.05108499]
[1735191462605,0.12157422,98279.0,98278.0,0.05108525]
[1735191463608,0.005,98279.0,98278.0,0.05208525]
[1735191464708,0.007,98279.0,98278.0,0.05208525]
[1735191465309,0.007,98279.0,98278.0,0.05208039]
[1735191468208,0.007,98279.0,98278.0,0.05207437]
[1735191468721,0.3608,98292.0,98278.0,0.01133937]
[1735191468911,0.3608,98292.0,98288.0,0.040731]
[1735191469213,0.3608,98292.0,98291.0,8e-05]
[1735191469394,0.3608,98292.0,98291.0,0.01033937]
[1735191469599,0.12157422,98293.0,98291.0,0.01033937]
[1735191469806,0.12157422,98293.0,98292.0,0.01025937]
[1735191470008,0.12157422,98293.0,98292.0,0.01033937]
[1735191470708,0.009,98293.0,98292.0,0.01033937]
[1735191470908,0.005,98293.0,98292.0,0.05106837]
[1735191471102,0.005,98293.0,98292.0,0.17396837]
[1735191471409,0.014,98293.0,98292.0,0.17496625]
[1735191471810,0.014,98293.0,98292.0,0.1749669]
[1735191474016,0.040728,98303.0,98295.0,0.040731]
[1735191474511,0.040728,98303.0,98302.0,8e-05]
[1735191474710,0.040728,98303.0,98302.0,0.01033705]
[1735191475309,0.047728,98303.0,98302.0,0.01033705]
[1735191476606,0.040728,98303.0,98302.0,0.01033705]
[1735191476805,0.046728,98303.0,98302.0,0.01233705]
[1735191477311,0.046728,98303.0,98302.0,0.01233481]
[1735191480803,0.046728,98303.0,98302.0,0.01233727]
[1735191481412,0.006,98303.0,98302.0,0.05306527]
[1735191482709,0.006,98303.0,98302.0,0.05306955]
[1735191482909,0.0616,98306.0,98302.0,0.05206955]
[1735191483110,0.0616,98306.0,98305.0,0.3608]
[1735191483305,0.0616,98306.0,98305.0,0.37114155]
[1735191484417,0.0616,98306.0,98305.0,0.37214155]
[1735191485210,0.0616,98306.0,98305.0,0.01134155]
[1735191487014,0.0616,98306.0,98294.0,0.18274046]
[1735191487211,0.040731,98295.0,98294.0,0.18274046]
[1735191487413,0.040771,98295.0,98294.0,0.18274046]
[1735191488011,4e-05,98295.0,98288.0,0.00996273]
[1735191488310,4e-05,98289.0,98285.0,0.18274046]
[1735191488711,4e-05,98286.0,98285.0,0.18274046]
[1735191489306,4e-05,98286.0,98284.0,0.3608]
[1735191489707,4e-05,98285.0,98284.0,0.3608]
[1735191490414,0.12157422,98300.0,98285.0,0.040735]
[1735191490618,0.1520907,98302.0,98297.0,0.04073]
[1735191490919,0.1520907,98302.0,98300.0,0.040728]
[1735191492318,0.040727,98304.0,98300.0,0.040728]
[1735191492716,0.040727,98304.0,98303.0,8e-05]
[1735191493219,0.48304066,98309.0,98303.0,0.36088]
[1735191493220,0.00052001,98309.0,98303.0,0.36088]
[1735191493526,0.11636042,98323.0,98322.0,0.040719]
[1735191493709,0.11636042,98323.0,98322.0,0.401519]
[1735191493909,0.11636042,98323.0,98322.0,0.401599]
[1735191494623,0.2725872,98337.0,98328.0,0.040717]
[1735191494917,0.2725872,98337.0,98328.0,0.040797]
[1735191495717,0.2725872,98337.0,98328.0,8e-05]
[1735191495916,0.0603,98337.0,98336.0,0.401514]
[1735191496127,0.0603,98337.0,98336.0,0.401594]
[1735191497019,0.040708,98350.0,98341.0,0.040711]
[1735191497523,0.040708,98350.0,98348.0,8e-05]
[1735191499228,0.00804,98349.0,98348.0,0.01029298]
[1735191499926,0.00804,98349.0,98348.0,0.01229298]
[1735191501624,0.00804,98349.0,98348.0,0.01228124]
[1735191503727,0.00704,98349.0,98348.0,0.01128124]
[1735191503927,0.00704,98349.0,98348.0,0.01328124]
[1735191504731,0.00704,98349.0,98348.0,0.01327093]
[1735191504923,4e-05,98349.0,98348.0,0.01227093]
[1735191510725,4e-05,98349.0,98348.0,0.01226254]
[1735191514029,4e-05,98349.0,98348.0,0.00208]
[1735191514632,0.00104,98349.0,98348.0,0.00208]
[1735191514825,0.06354,98349.0,98348.0,0.00208]
[1735191515025,0.06354,98349.0,98348.0,0.01226844]
[1735191515229,0.06354,98349.0,98348.0,0.01026886]
[1735191515925,0.06354,98349.0,98348.0,0.01226886]
[1735191517134,0.06254,98349.0,98348.0,0.01226886]
[1735191518037,0.06254,98349.0,98348.0,0.01026886]
[1735191518339,0.06254,98349.0,98348.0,0.01226886]
[1735191518636,0.06254,98349.0,98348.0,0.01326886]
[1735191518835,0.06254,98349.0,98348.0,0.01426886]
[1735191520441,0.06254,98349.0,98348.0,0.01326886]
[1735191520839,4e-05,98349.0,98348.0,0.01326886]
[1735191521253,4e-05,98349.0,98348.0,0.01426886]
[1735191521944,4e-05,98349.0,98348.0,0.01326886]
[1735191522537,4e-05,98349.0,98348.0,0.01126886]
[1735191523732,0.0495163,98349.0,98348.0,0.01126886]
[1735191525042,0.23155689,98349.0,98348.0,0.01126886]
[1735191526339,0.0495163,98349.0,98348.0,0.01126886]
[1735191527743,0.23155689,98349.0,98348.0,0.01126886]
[1735191528946,0.0495163,98349.0,98348.0,0.01126886]
[1735191530344,0.23155689,98349.0,98348.0,0.01126886]
[1735191531838,0.23155689,98349.0,98348.0,0.01135032]
[1735191532347,0.23155689,98349.0,98348.0,0.01335032]
[1735191532646,0.23155689,98349.0,98348.0,0.01435032]
[1735191534235,0.23155689,98349.0,98348.0,0.01335032]
[1735191534433,0.0495163,98349.0,98348.0,0.01335032]
[1735191534850,0.0495163,98349.0,98348.0,0.01334446]
[1735191535046,0.0495163,98349.0,98348.0,0.01234446]
[1735191540656,0.0495163,98349.0,98348.0,0.00208]
[1735191540855,0.0495163,98349.0,98348.0,0.01233813]
[1735191541354,0.0495163,98349.0,98348.0,0.00208]
[1735191541655,0.0495163,98349.0,98348.0,0.01233992]
[1735191542556,0.040715,98332.0,98331.0,0.18245826]
[1735191542859,0.040715,98332.0,98322.0,8e-05]
[1735191542860,0.401555,98332.0,98330.0,0.18245826]
[1735191543258,4e-05,98331.0,98330.0,0.18245826]
[1735191545151,0.040719,98323.0,98322.0,8e-05]
[1735191546150,0.040759,98323.0,98322.0,8e-05]
[1735191546350,0.040759,98323.0,98322.0,0.00408]
[1735191546661,0.040759,98323.0,98322.0,0.01308]
[1735191555865,0.401559,98323.0,98322.0,0.01308]
[1735191557972,0.52328313,98323.0,98322.0,0.01308]
[1735191562164,0.401559,98323.0,98322.0,0.01308]
[1735191568175,0.040759,98323.0,98322.0,0.01308]
[1735191570169,0.19300639,98323.0,98322.0,0.01308]
[1735191572971,0.09024623,98323.0,98322.0,0.01308]
[1735191574475,0.040759,98323.0,98322.0,0.01308]
[1735191574673,0.040759,98323.0,98322.0,0.19553826]
[1735191575878,0.09024623,98323.0,98322.0,0.19553826]
[1735191577185,0.09024623,98323.0,98322.0,0.01308]
[1735191578782,0.09024623,98323.0,98322.0,0.19553826]
[1735191580182,0.09024623,98323.0,98322.0,0.01308]
[1735191583696,0.71032723,98323.0,98318.0,0.00387235]
[1735191583988,0.040731,98295.0,98294.0,0.42675914]
[1735191584189,0.401531,98295.0,98294.0,0.42567914]
[1735191584386,0.36084,98295.0,98290.0,0.42567914]
[1735191584592,0.040732,98291.0,98290.0,0.42567914]
[1735191584786,0.040772,98291.0,98290.0,0.42567914]
[1735191585596,0.040772,98291.0,98290.0,0.43067914]
[1735191585897,0.040772,98291.0,98290.0,0.43267914]
[1735191586197,0.040772,98291.0,98290.0,0.007]
[1735191586198,0.27306235,98291.0,98290.0,0.007]
[1735191587595,0.09025923,98291.0,98290.0,0.007]
[1735191588823,0.040772,98291.0,98290.0,0.007]
[1735191588997,0.05086825,98291.0,98290.0,0.007]
[1735191592291,0.040772,98291.0,98290.0,0.007]
[1735191606811,0.52293464,98291.0,98290.0,0.007]
[1735191607712,0.401572,98291.0,98290.0,0.007]
[1735191611520,0.040739,98275.0,98274.0,0.3608]
[1735191612406,0.040779,98275.0,98274.0,0.3608]
[1735191612607,0.040779,98275.0,98274.0,0.3648]
[1735191612807,0.041779,98275.0,98274.0,0.3738]
[1735191613119,0.00104,98275.0,98274.0,0.3738]
[1735191613309,0.41030809,98291.0,98274.0,0.6738]
[1735191613615,0.41030809,98291.0,98290.0,8e-05]
[1735191613616,0.3608,98291.0,98290.0,8e-05]
[1735191614512,0.3618,98291.0,98290.0,8e-05]
[1735191615920,0.3608,98291.0,98290.0,8e-05]
[1735191616117,0.3608,98291.0,98290.0,0.00208]
[1735191617718,0.41030422,98291.0,98290.0,0.00208]
[1735191618813,0.51314074,98291.0,98290.0,0.00208]
[1735191619016,0.15234074,98291.0,98290.0,0.00208]
[1735191620415,0.040732,98292.0,98290.0,0.00208]
[1735191621424,0.040732,98292.0,98291.0,8e-05]
[1735191623221,0.040732,98292.0,98291.0,0.00208]
[1735191626340,0.16260099,98292.0,98291.0,0.00208]
[1735191627327,0.12186899,98292.0,98291.0,0.00208]
[1735191627524,0.12186899,98292.0,98291.0,0.042813]
[1735191628029,0.12186899,98292.0,98291.0,0.05307889]
[1735191629426,0.15234074,98297.0,98291.0,0.05307889]
[1735191629427,0.12186899,98294.0,98291.0,0.23617928]
[1735191629829,0.12186899,98294.0,98293.0,8e-05]
[1735191632136,0.12186899,98295.0,98293.0,8e-05]
[1735191632528,0.12186899,98295.0,98294.0,8e-05]
[1735191633632,0.12186899,98295.0,98294.0,0.00108]
[1735191633942,0.040731,98296.0,98294.0,0.00108]
[1735191633943,0.16259999,98296.0,98294.0,0.00108]
[1735191634230,0.16259999,98296.0,98295.0,8e-05]
[1735191635536,0.040731,98296.0,98295.0,8e-05]
[1735191635736,0.040731,98296.0,98295.0,0.00108]
[1735191636138,0.040731,98296.0,98295.0,8e-05]
[1735191636434,0.040731,98296.0,98295.0,0.00108]
[1735191637431,0.16259999,98296.0,98295.0,0.00108]
[1735191639532,0.040731,98296.0,98295.0,0.00108]
[1735191644747,0.040731,98296.0,98295.0,0.18418039]
[1735191647438,0.040731,98296.0,98295.0,0.00108]
[1735191654349,0.15234074,98298.0,98295.0,0.00108]
[1735191654650,0.15234074,98298.0,98297.0,8e-05]
[1735191656344,0.15234074,98305.0,98297.0,8e-05]
[1735191656544,0.040729,98300.0,98297.0,8e-05]
[1735191656744,0.040729,98300.0,98296.0,0.040731]
[1735191657248,4e-05,98297.0,98296.0,0.040731]
[1735191658155,4e-05,98297.0,98296.0,0.041731]
[1735191658948,0.18280312,98311.0,98296.0,0.001]
[1735191659256,0.3608,98330.0,98319.0,0.040721]
[1735191659558,0.24261395,98337.0,98309.0,0.3608]
[1735191659559,0.22365542,98331.0,98321.0,8e-05]
[1735191659856,0.0629,98328.0,98324.0,0.040719]
[1735191660948,0.12188381,98327.0,98325.0,0.18292546]
[1735191661748,0.16260181,98327.0,98325.0,0.18292546]
[1735191662248,0.16660181,98327.0,98325.0,0.18292546]
[1735191662649,0.040719,98324.0,98321.0,0.001]
[1735191662955,4e-05,98322.0,98320.0,0.54448546]
[1735191663153,4e-05,98322.0,98320.0,0.54372546]
[1735191663350,4e-05,98321.0,98320.0,0.54372546]
[1735191663849,4e-05,98321.0,98320.0,0.3608]
[1735191664757,4e-05,98321.0,98320.0,0.3618]
[1735191665549,0.04076,98321.0,98320.0,0.3618]
[1735191666746,0.04076,98321.0,98320.0,0.3608]
[1735191666944,0.04076,98321.0,98320.0,0.3618]
[1735191668454,4e-05,98321.0,98320.0,0.3618]
[1735191673756,4e-05,98321.0,98320.0,0.001]
[1735191680162,0.040723,98314.0,98313.0,0.18292546]
[1735191680460,0.401523,98314.0,98307.0,0.24390062]
[1735191680666,0.040726,98308.0,98307.0,0.24390062]
[1735191680867,0.040766,98308.0,98307.0,0.24390062]
[1735191681469,0.040766,98308.0,98292.0,0.0618]
[1735191681470,0.040728,98303.0,98294.0,0.24390062]
[1735191681769,4e-05,98295.0,98294.0,0.24390062]
[1735191682860,4e-05,98295.0,98294.0,0.24890062]
[1735191683763,0.00104,98295.0,98294.0,0.25790062]
[1735191688073,0.00104,98295.0,98294.0,0.014]
[1735191689468,0.00104,98295.0,98294.0,0.25790062]
[1735191692371,0.00104,98295.0,98294.0,0.014]
[1735191707178,0.00104,98295.0,98294.0,0.26079402]
[1735191708682,0.00104,98295.0,98294.0,0.31908259]
[1735191710382,0.00104,98295.0,98294.0,0.014]
[1735191711583,0.00104,98295.0,98294.0,0.26102501]
[1735191713777,0.00104,98295.0,98294.0,0.30175502]
[1735191714082,0.00104,98295.0,98294.0,0.26102501]
[1735191718883,0.00104,98295.0,98294.0,0.30175893]
[1735191721791,0.00104,98295.0,98294.0,0.26102501]
[1735191722688,0.09233853,98295.0,98294.0,0.26102501]
[1735191725387,0.00104,98295.0,98294.0,0.26102501]
[1735191727291,0.00104,98295.0,98294.0,0.30175097]
[1735191727691,0.00104,98295.0,98294.0,0.26102501]
[1735191728689,0.00104,98295.0,98294.0,0.30174198]
[1735191729289,0.00104,98295.0,98294.0,0.26102501]
[1735191730087,0.00104,98295.0,98294.0,0.30174016]
[1735191733692,0.00104,98295.0,98294.0,0.26102501]
[1735191734293,0.00104,98295.0,98294.0,0.30174843]
[1735191737200,0.00104,98295.0,98294.0,0.26102501]
[1735191739691,0.00104,98295.0,98294.0,0.62182501]
[1735191743415,0.00104,98295.0,98294.0,0.66239412]
[1735191746627,0.00104,98295.0,98294.0,1.02719821]
[1735191748027,0.00104,98295.0,98294.0,0.66239412]
[1735191749222,0.00104,98295.0,98294.0,1.02719821]
[1735191754035,0.00104,98295.0,98294.0,0.66239412]
[1735191760241,0.00104,98295.0,98294.0,0.62182501]
[1735191761333,0.00104,98295.0,98294.0,0.66238643]
[1735191767044,0.06054,98295.0,98294.0,0.62182501]
[1735191767237,0.06054,98295.0,98294.0,0.26102501]
[1735191767432,0.06054,98295.0,98294.0,0.62182501]
[1735191768746,0.15183853,98295.0,98294.0,0.62182501]
[1735191771737,0.06054,98295.0,98294.0,0.62182501]
[1735191771931,0.06054,98295.0,98294.0,0.92717266]
[1735191774836,0.06054,98295.0,98294.0,0.62182501]
[1735191777045,0.00104,98295.0,98294.0,0.62182501]
[1735191777349,0.040726,98308.0,98294.0,0.6624517]
[1735191777548,0.040726,98308.0,98304.0,0.3608]
[1735191777740,0.040726,98308.0,98305.0,0.040727]
[1735191779151,0.040726,98308.0,98305.0,0.401527]
[1735191779646,0.040726,98308.0,98307.0,8e-05]
[1735191780742,0.040726,98308.0,98307.0,0.00608]
[1735191780936,0.040726,98308.0,98307.0,0.00808]
[1735191781645,0.0633,98311.0,98307.0,0.00808]
[1735191781845,0.0633,98311.0,98309.0,0.040725]
[1735191782237,0.0633,98311.0,98310.0,8e-05]
[1735191783441,0.0633,98311.0,98310.0,0.00308]
[1735191783839,0.0633,98311.0,98310.0,0.00408]
[1735191784351,0.15216935,98318.0,98310.0,0.00408]
[1735191784547,0.15216935,98318.0,98317.0,0.040722]
[1735191784757,0.15216935,98320.0,98317.0,0.040802]
[1735191784951,0.15216935,98320.0,98319.0,0.040721]
[1735191785347,0.15216935,98320.0,98319.0,0.040801]
[1735191786157,0.09151375,98324.0,98323.0,0.04072]
[1735191786454,0.09151375,98324.0,98323.0,0.4016]
[1735191787347,0.09151375,98324.0,98323.0,0.4026]
[1735191787539,0.09151375,98330.0,98327.0,0.040718]
[1735191787747,0.09151375,98330.0,98328.0,0.040717]
[1735191787953,0.09151375,98330.0,98329.0,8e-05]
[1735191789155,0.09151375,98333.0,98329.0,8e-05]
[1735191789554,0.09151375,98333.0,98332.0,8e-05]
[1735191790761,0.13222875,98335.0,98332.0,8e-05]
[1735191791257,0.13222875,98335.0,98333.0,8e-05]
[1735191791755,0.040715,98335.0,98333.0,8e-05]
[1735191792356,0.00252606,98334.0,98333.0,8e-05]
[1735191792950,0.00152606,98334.0,98333.0,8e-05]